fUST/lending_fUST_20241229
["ID","MTS","AMOUNT","RATE_DAILY","PERIOD"]
[347037836,1735479049512,-5796.38975028,0.00012,2]
[347037838,1735479049525,-38584.38676166,0.00012,2]
[347037841,1735479049537,-193954.23981202,0.00012,2]
[347037898,1735479050186,-500.0,9.243e-05,2]
[347037900,1735479050196,-501.32,9.244e-05,2]
[347037902,1735479050204,-523.97956359,9.517e-05,2]
[347037904,1735479050214,-501.32,9.518e-05,2]
[347037906,1735479050223,-501.32,9.792e-05,2]
[347037908,1735479050234,-500.0,0.00010066,2]
[347037910,1735479050243,-501.32,0.00010066,2]
[347037912,1735479050253,-501.32,0.0001034,2]
[347037914,1735479050262,-500.0,0.0001034,2]
[347037916,1735479050271,-501.32,0.00010614,2]
[347037918,1735479050281,-500.0,0.00010614,2]
[347037920,1735479050290,-501.32,0.00010888,2]
[347037922,1735479050299,-500.0,0.00010888,2]
[347037924,1735479050309,-501.32,0.00011162,2]
[347037926,1735479050319,-500.0,0.00011162,2]
[347037928,1735479050328,-501.32,0.00011436,2]
[347037930,1735479050337,-500.0,0.00011436,2]
[347037932,1735479050346,-501.32,0.0001171,2]
[347037934,1735479050355,-500.0,0.0001171,2]
[347037936,1735479050365,-204.187933,0.00011973,2]
[347037938,1735479050374,-501.32,0.00011984,2]
[347037940,1735479050383,-500.0,0.00011984,2]
[347037942,1735479050392,-1048363.42183,0.00012,2]
[347038059,1735479789018,353.19040272,8.959e-05,2]
[347038060,1735479815384,24900.0,8.244e-05,2]
[347038061,1735479912672,644.06143211,8.959e-05,2]
[347038062,1735479927357,482.23614797,8.95e-05,2]
[347038063,1735479927857,644.06143211,8.959e-05,2]
[347038064,1735479935136,-644.06143211,9.05e-05,2]
[347038065,1735479935156,-131.72144814,9.142e-05,2]
[347038066,1735479951750,512.33998397,8.959e-05,2]
[347038067,1735479956092,-512.33998397,9.05e-05,2]
[347038068,1735479956114,-512.33998397,9.142e-05,2]
[347038069,1735479956134,-300.0,9.241e-05,2]
[347038070,1735479956154,-500.0,9.242e-05,2]
[347038071,1735479956174,-500.0,9.242e-05,2]
[347038072,1735479956195,-572.77433546,9.242e-05,2]
[347038073,1735479960825,4418.5937072,8.408e-05,2]
[347038075,1735480032147,733.55812981,8.95e-05,2]
[347038076,1735480037155,-277.99055866,9.059e-05,2]
[347038077,1735480044140,-915.75332707,9.059e-05,2]
[347038081,1735480135739,-1246.36403711,9.059e-05,2]
[347038082,1735480135789,-1246.36403711,9.059e-05,2]
[347038083,1735480135846,-1042.44402862,9.059e-05,2]
[347038085,1735480148439,1880.41574422,8.968e-05,2]
[347038086,1735480167114,-1470.0,9.058e-05,2]
[347038135,1735480232867,-410.41574422,9.058e-05,2]
[347038136,1735480232876,-1880.41574422,9.149e-05,2]
[347038138,1735480232886,-300.0,9.24e-05,2]
[347038139,1735480232895,-500.0,9.241e-05,2]
[347038141,1735480232904,-324.79548526,9.241e-05,2]
[347038143,1735480232913,-500.0,9.241e-05,2]
[347038144,1735480232923,-500.0,9.241e-05,2]
[347038150,1735480233024,-500.0,9.241e-05,2]
[347038151,1735480233034,-500.0,9.241e-05,2]
[347038153,1735480233044,-500.0,9.241e-05,2]
[347038154,1735480233054,-406.3028843,9.241e-05,2]
[347038156,1735480233064,-197.61716717,9.241e-05,2]
[347038159,1735480233074,-500.0,9.241e-05,2]
[347038161,1735480233084,-1298.71,9.241e-05,2]
[347038164,1735480233093,-745.72,9.241e-05,2]
[347038167,1735480233103,-500.0,9.242e-05,2]
[347038169,1735480233113,-549.44673543,9.242e-05,2]
[347038172,1735480233123,-500.0,9.242e-05,2]
[347038174,1735480233133,-500.0,9.242e-05,2]
[347038177,1735480233142,-500.0,9.242e-05,2]
[347038180,1735480233151,-500.0,9.242e-05,2]
[347038182,1735480233160,-500.0,9.242e-05,2]
[347038185,1735480233170,-500.0,9.242e-05,2]
[347038186,1735480233179,-500.0,9.242e-05,2]
[347038189,1735480233190,-500.0,9.242e-05,2]
[347038192,1735480233199,-637.39,9.242e-05,2]
[347038194,1735480233209,-500.0,9.242e-05,2]
[347038197,1735480233219,-500.0,9.242e-05,2]
[347038200,1735480233228,-500.0,9.242e-05,2]
[347038203,1735480233239,-500.0,9.242e-05,2]
[347038205,1735480233249,-500.0,9.242e-05,2]
[347038207,1735480233259,-552.32,9.242e-05,2]
[347038210,1735480233269,-500.0,9.242e-05,2]
[347038213,1735480233278,-810.0,9.242e-05,2]
[347038215,1735480233288,-794.6,9.242e-05,2]
[347038218,1735480233297,-648.27,9.242e-05,2]
[347038219,1735480233311,-584.26599568,9.242e-05,2]
[347038222,1735480233320,-500.0,9.242e-05,2]
[347038224,1735480233329,-500.0,9.242e-05,2]
[347038227,1735480233339,-1824.68,9.242e-05,2]
[347038228,1735480233348,-500.0,9.242e-05,2]
[347038230,1735480233357,-599.93,9.242e-05,2]
[347038232,1735480233366,-711.28,9.242e-05,2]
[347038234,1735480233375,-500.0,9.242e-05,2]
[347038235,1735480233385,-527.61,9.242e-05,2]
[347038237,1735480233395,-500.0,9.242e-05,2]
[347038238,1735480233405,-762.65,9.242e-05,2]
[347038240,1735480233414,-500.0,9.242e-05,2]
[347038241,1735480233423,-500.0,9.242e-05,2]
[347038243,1735480233433,-670.97,9.242e-05,2]
[347038245,1735480233442,-500.0,9.242e-05,2]
[347038246,1735480233451,-500.0,9.242e-05,2]
[347038248,1735480233461,-500.0,9.242e-05,2]
[347038249,1735480233470,-500.68779555,9.242e-05,2]
[347038251,1735480233480,-500.0,9.242e-05,2]
[347038252,1735480233489,-500.0,9.243e-05,2]
[347038254,1735480233498,-500.0,9.243e-05,2]
[347038256,1735480233509,-500.0,9.243e-05,2]
[347038257,1735480233519,-500.0,9.243e-05,2]
[347038259,1735480233528,-570.32046128,9.243e-05,2]
[347038260,1735480233538,-500.0,9.243e-05,2]
[347038262,1735480233547,-500.0,9.243e-05,2]
[347038263,1735480233558,-500.0,9.243e-05,2]
[347038265,1735480233569,-500.0,9.243e-05,2]
[347038267,1735480233578,-500.0,9.243e-05,2]
[347038268,1735480233588,-503.99506813,9.243e-05,2]
[347038270,1735480233598,-500.0,9.243e-05,2]
[347038271,1735480233607,-500.0,9.243e-05,2]
[347038273,1735480233616,-500.0,9.243e-05,2]
[347038274,1735480233626,-500.0,9.243e-05,2]
[347038276,1735480233635,-500.0,9.243e-05,2]
[347038277,1735480233645,-500.0,9.243e-05,2]
[347038279,1735480233655,-500.0,9.243e-05,2]
[347038281,1735480233664,-500.0,9.243e-05,2]
[347038282,1735480233674,-500.0,9.243e-05,2]
[347038283,1735480233684,-382.88520881,9.243e-05,2]
[347038284,1735480233694,-500.0,9.243e-05,2]
[347038285,1735480233704,-500.0,9.243e-05,2]
[347038286,1735480233714,-377.89275187,9.243e-05,2]
[347038458,1735480238670,-500.0,9.15e-05,2]
[347038460,1735480238681,-500.0,9.242e-05,2]
[347038462,1735480238692,-122.10724813,9.243e-05,2]
[347038464,1735480238703,-2202.13,9.243e-05,2]
[347038467,1735480238713,-407.8842259,9.243e-05,2]
[347038470,1735480238732,-92.1157741,9.243e-05,2]
[347038472,1735480238743,-500.0,9.243e-05,2]
[347038474,1735480238754,-157.52486788,9.243e-05,2]
[347038476,1735480238764,-167.38530745,9.243e-05,2]
[347038479,1735480238778,-332.61469255,9.243e-05,2]
[347038481,1735480238789,-500.0,9.243e-05,2]
[347038483,1735480238801,-876.35,9.243e-05,2]
[347038485,1735480238812,-10512.48239902,9.243e-05,2]
[347038489,1735480238826,-6790.40760098,9.243e-05,2]
[347038492,1735480238837,-500.0,9.243e-05,2]
[347038495,1735480238848,-627.81,9.243e-05,2]
[347038498,1735480238859,-500.0,9.243e-05,2]
[347038500,1735480238870,-500.0,9.243e-05,2]
[347038503,1735480238880,-500.0,9.243e-05,2]
[347038505,1735480238891,-500.0,9.243e-05,2]
[347038507,1735480238902,-476.96095445,9.243e-05,2]
[347038509,1735480238915,-23.03904555,9.243e-05,2]
[347038511,1735480238926,-500.0,9.244e-05,2]
[347038513,1735480238937,-500.0,9.244e-05,2]
[347038516,1735480238948,-500.0,9.244e-05,2]
[347038517,1735480238959,-500.0,9.244e-05,2]
[347038528,1735480238979,-500.0,9.244e-05,2]
[347038531,1735480239097,-500.0,9.244e-05,2]
[347038533,1735480239106,-549.49,9.244e-05,2]
[347038535,1735480239116,-500.0,9.244e-05,2]
[347038537,1735480239125,-184.38630942,9.244e-05,2]
[347038539,1735480239134,-708.73,9.244e-05,2]
[347038541,1735480239143,-500.0,9.244e-05,2]
[347038543,1735480239152,-500.0,9.245e-05,2]
[347038545,1735480239161,-500.0,9.245e-05,2]
[347038547,1735480239171,-325.25064351,9.245e-05,2]
[347038549,1735480239181,-708.73,9.245e-05,2]
[347038551,1735480239191,-237.37400152,9.245e-05,2]
[347038553,1735480239202,-471.35599848,9.245e-05,2]
[347038555,1735480239211,-708.73,9.245e-05,2]
[347038557,1735480239221,-2681.39418903,9.245e-05,2]
[347038660,1735480240786,-1528.64581097,9.245e-05,2]
[347038662,1735480240796,-445.47088652,9.245e-05,2]
[347038664,1735480240806,-184.34399989,9.245e-05,2]
[347038666,1735480240816,-552.46887172,9.246e-05,2]
[347038668,1735480240845,-359.89375982,9.242e-05,2]
[347038670,1735480240855,-3595.76112828,9.246e-05,2]
[347038671,1735480240865,-708.73,9.246e-05,2]
[347038672,1735480240874,-500.0,9.515e-05,2]
[347038673,1735480240884,-1298.71,9.515e-05,2]
[347038674,1735480240893,-745.72,9.515e-05,2]
[347038675,1735480240903,-500.0,9.516e-05,2]
[347038676,1735480240912,-500.0,9.516e-05,2]
[347038677,1735480240921,-500.0,9.516e-05,2]
[347038678,1735480240931,-500.0,9.516e-05,2]
[347038680,1735480240940,-500.0,9.516e-05,2]
[347038682,1735480240950,-500.0,9.516e-05,2]
[347038684,1735480240959,-500.0,9.516e-05,2]
[347038686,1735480240968,-500.0,9.516e-05,2]
[347038688,1735480240978,-637.39,9.516e-05,2]
[347038690,1735480240987,-500.0,9.516e-05,2]
[347038692,1735480240996,-500.0,9.516e-05,2]
[347038694,1735480241005,-500.0,9.516e-05,2]
[347038696,1735480241015,-500.0,9.516e-05,2]
[347038698,1735480241028,-500.0,9.516e-05,2]
[347038699,1735480241038,-552.32,9.516e-05,2]
[347038701,1735480241047,-500.0,9.516e-05,2]
[347038702,1735480241056,-810.0,9.516e-05,2]
[347038703,1735480241068,-794.6,9.516e-05,2]
[347038704,1735480241078,-648.27,9.516e-05,2]
[347038705,1735480241087,-500.0,9.516e-05,2]
[347038706,1735480241097,-500.0,9.516e-05,2]
[347038707,1735480241107,-1824.68,9.516e-05,2]
[347038708,1735480241117,-500.0,9.516e-05,2]
[347038710,1735480241126,-599.93,9.516e-05,2]
[347038712,1735480241136,-711.28,9.516e-05,2]
[347038714,1735480241145,-500.0,9.516e-05,2]
[347038716,1735480241154,-527.61,9.516e-05,2]
[347038718,1735480241164,-500.0,9.516e-05,2]
[347038720,1735480241173,-762.65,9.516e-05,2]
[347038722,1735480241182,-500.0,9.516e-05,2]
[347038723,1735480241192,-427.11041384,9.516e-05,2]
[347038724,1735480241202,-670.97,9.516e-05,2]
[347038725,1735480241211,-288.97455585,9.516e-05,2]
[347038726,1735480241221,-500.0,9.516e-05,2]
[347038727,1735480241230,-500.0,9.516e-05,2]
[347038728,1735480241239,-239.16869773,9.516e-05,2]
[347038729,1735480241249,-500.0,9.517e-05,2]
[347038730,1735480241259,-500.0,9.517e-05,2]
[347038731,1735480241268,-500.0,9.517e-05,2]
[347038733,1735480241277,-500.0,9.517e-05,2]
[347038735,1735480241286,-500.0,9.517e-05,2]
[347038737,1735480241296,-500.0,9.517e-05,2]
[347038739,1735480241305,-500.0,9.517e-05,2]
[347038741,1735480241315,-500.0,9.517e-05,2]
[347038743,1735480241324,-500.0,9.517e-05,2]
[347038745,1735480241334,-500.0,9.517e-05,2]
[347038747,1735480241343,-500.0,9.517e-05,2]
[347038748,1735480241353,-500.0,9.517e-05,2]
[347038749,1735480241363,-2202.13,9.517e-05,2]
[347038751,1735480241372,-500.0,9.517e-05,2]
[347038753,1735480241382,-500.0,9.517e-05,2]
[347038755,1735480241391,-500.0,9.517e-05,2]
[347038757,1735480241400,-876.35,9.517e-05,2]
[347038759,1735480241410,-17302.89,9.517e-05,2]
[347038761,1735480241419,-500.23903858,9.517e-05,2]
[347038763,1735480241429,-708.73,9.517e-05,2]
[347038765,1735480241439,-627.81,9.517e-05,2]
[347038768,1735480241449,-500.0,9.517e-05,2]
[347038770,1735480241458,-500.0,9.517e-05,2]
[347038771,1735480241467,-500.0,9.517e-05,2]
[347038773,1735480241476,-500.0,9.517e-05,2]
[347038775,1735480241485,-500.0,9.517e-05,2]
[347038777,1735480241495,-483.76587734,9.518e-05,2]
[347038779,1735480241504,-500.0,9.518e-05,2]
[347038782,1735480241514,-549.49,9.518e-05,2]
[347038784,1735480241523,-500.0,9.518e-05,2]
[347038785,1735480241532,-708.73,9.518e-05,2]
[347038787,1735480241542,-204.23100915,9.518e-05,2]
[347038789,1735480241551,-900.28,9.518e-05,2]
[347038791,1735480241562,-500.0,9.518e-05,2]
[347038793,1735480241572,-500.0,9.518e-05,2]
[347038796,1735480241582,-500.0,9.519e-05,2]
[347038797,1735480241592,-708.73,9.519e-05,2]
[347038800,1735480241602,-4210.04,9.519e-05,2]
[347038802,1735480241612,-4148.23,9.52e-05,2]
[347038804,1735480241621,-708.73,9.52e-05,2]
[347038805,1735480241630,-708.73,9.521e-05,2]
[347038807,1735480241640,-3000.0,9.692e-05,2]
[347038809,1735480241649,-500.0,9.789e-05,2]
[347038812,1735480241659,-1298.71,9.789e-05,2]
[347038814,1735480241669,-745.72,9.789e-05,2]
[347038816,1735480241679,-500.0,9.79e-05,2]
[347038817,1735480241688,-500.0,9.79e-05,2]
[347038819,1735480241697,-500.0,9.79e-05,2]
[347038822,1735480241707,-500.0,9.79e-05,2]
[347038824,1735480241716,-500.0,9.79e-05,2]
[347038826,1735480241725,-500.0,9.79e-05,2]
[347038827,1735480241735,-500.0,9.79e-05,2]
[347038830,1735480241745,-637.39,9.79e-05,2]
[347038831,1735480241755,-500.0,9.79e-05,2]
[347038834,1735480241764,-500.0,9.79e-05,2]
[347038835,1735480241774,-500.0,9.79e-05,2]
[347038838,1735480241783,-500.0,9.79e-05,2]
[347038840,1735480241793,-552.32,9.79e-05,2]
[347038842,1735480241802,-500.0,9.79e-05,2]
[347038844,1735480241814,-810.0,9.79e-05,2]
[347038846,1735480241823,-794.6,9.79e-05,2]
[347038848,1735480241833,-648.27,9.79e-05,2]
[347038850,1735480241842,-500.0,9.79e-05,2]
[347038852,1735480241851,-500.0,9.79e-05,2]
[347038854,1735480241861,-1824.68,9.79e-05,2]
[347038856,1735480241870,-500.0,9.79e-05,2]
[347038858,1735480241880,-599.93,9.79e-05,2]
[347038859,1735480241889,-711.28,9.79e-05,2]
[347038861,1735480241899,-500.0,9.79e-05,2]
[347038863,1735480241908,-527.61,9.79e-05,2]
[347038865,1735480241917,-500.0,9.79e-05,2]
[347038867,1735480241926,-762.65,9.79e-05,2]
[347038869,1735480241936,-500.0,9.79e-05,2]
[347038871,1735480241946,-670.97,9.79e-05,2]
[347038873,1735480241956,-500.0,9.79e-05,2]
[347038875,1735480241966,-500.0,9.791e-05,2]
[347038878,1735480241976,-500.0,9.791e-05,2]
[347038879,1735480241985,-500.0,9.791e-05,2]
[347038882,1735480241995,-500.0,9.791e-05,2]
[347038883,1735480242004,-500.0,9.791e-05,2]
[347038885,1735480242013,-500.0,9.791e-05,2]
[347038887,1735480242024,-385.1882697,9.791e-05,2]
[347038889,1735480242034,-500.0,9.791e-05,2]
[347038891,1735480242043,-500.0,9.791e-05,2]
[347038893,1735480242052,-500.0,9.791e-05,2]
[347038895,1735480242063,-500.0,9.791e-05,2]
[347038897,1735480242072,-2202.13,9.791e-05,2]
[347038899,1735480242081,-500.0,9.791e-05,2]
[347038901,1735480242091,-500.0,9.791e-05,2]
[347038903,1735480242100,-366.87312344,9.791e-05,2]
[347038905,1735480242110,-876.35,9.791e-05,2]
[347038907,1735480242118,-17302.89,9.791e-05,2]
[347038909,1735480242128,-708.73,9.791e-05,2]
[347038911,1735480242137,-627.81,9.791e-05,2]
[347038913,1735480242147,-500.0,9.791e-05,2]
[347038916,1735480242157,-500.0,9.791e-05,2]
[347038917,1735480242167,-500.0,9.791e-05,2]
[347038920,1735480242177,-500.0,9.791e-05,2]
[347038922,1735480242186,-500.0,9.792e-05,2]
[347038924,1735480242195,-549.49,9.792e-05,2]
[347038926,1735480242204,-500.0,9.792e-05,2]
[347038928,1735480242213,-708.73,9.792e-05,2]
[347038929,1735480242222,-900.28,9.792e-05,2]
[347038931,1735480242231,-187.60993535,9.792e-05,2]
[347038933,1735480242241,-500.0,9.792e-05,2]
[347038936,1735480242251,-500.0,9.793e-05,2]
[347038938,1735480242260,-708.73,9.793e-05,2]
[347038940,1735480242270,-4210.04,9.793e-05,2]
[347038941,1735480242279,-4148.23,9.794e-05,2]
[347038942,1735480242288,-204.23100911,0.00010034,2]
[347038943,1735480242297,-500.0,0.00010063,2]
[347038944,1735480242306,-1298.71,0.00010063,2]
[347038945,1735480242316,-745.72,0.00010063,2]
[347038946,1735480242325,-500.0,0.00010064,2]
[347038947,1735480242334,-500.0,0.00010064,2]
[347038948,1735480242343,-500.0,0.00010064,2]
[347038949,1735480242352,-500.0,0.00010064,2]
[347038950,1735480242361,-500.0,0.00010064,2]
[347038951,1735480242371,-500.0,0.00010064,2]
[347038952,1735480242380,-500.0,0.00010064,2]
[347038953,1735480242389,-637.39,0.00010064,2]
[347038954,1735480242399,-500.0,0.00010064,2]
[347038955,1735480242408,-500.0,0.00010064,2]
[347038957,1735480242418,-500.0,0.00010064,2]
[347038959,1735480242427,-500.0,0.00010064,2]
[347038961,1735480242437,-552.32,0.00010064,2]
[347038963,1735480242446,-500.0,0.00010064,2]
[347038965,1735480242457,-810.0,0.00010064,2]
[347038966,1735480242466,-794.6,0.00010064,2]
[347038969,1735480242476,-648.27,0.00010064,2]
[347038971,1735480242486,-500.0,0.00010064,2]
[347038973,1735480242495,-500.0,0.00010064,2]
[347038975,1735480242505,-1824.68,0.00010064,2]
[347038977,1735480242514,-500.0,0.00010064,2]
[347038979,1735480242524,-599.93,0.00010064,2]
[347038981,1735480242533,-711.28,0.00010064,2]
[347038982,1735480242543,-500.0,0.00010064,2]
[347038984,1735480242552,-527.61,0.00010064,2]
[347038986,1735480242563,-500.0,0.00010064,2]
[347038988,1735480242573,-762.65,0.00010064,2]
[347038990,1735480242582,-500.0,0.00010064,2]
[347038992,1735480242591,-670.97,0.00010064,2]
[347038994,1735480242601,-500.0,0.00010064,2]
[347038996,1735480242610,-500.0,0.00010065,2]
[347038998,1735480242620,-500.0,0.00010065,2]
[347039000,1735480242629,-500.0,0.00010065,2]
[347039002,1735480242639,-500.0,0.00010065,2]
[347039004,1735480242649,-500.0,0.00010065,2]
[347039006,1735480242658,-500.0,0.00010065,2]
[347039008,1735480242667,-500.0,0.00010065,2]
[347039010,1735480242677,-500.0,0.00010065,2]
[347039012,1735480242686,-500.0,0.00010065,2]
[347039014,1735480242695,-500.0,0.00010065,2]
[347039016,1735480242705,-2202.13,0.00010065,2]
[347039018,1735480242714,-526.46437524,0.00010065,2]
[347039020,1735480242723,-500.0,0.00010065,2]
[347039022,1735480242732,-876.35,0.00010065,2]
[347039024,1735480242742,-17302.89,0.00010065,2]
[347039026,1735480242752,-708.73,0.00010065,2]
[347039028,1735480242761,-627.81,0.00010065,2]
[347039030,1735480242771,-500.0,0.00010065,2]
[347039032,1735480242781,-500.0,0.00010065,2]
[347039035,1735480242790,-423.38442397,0.00010065,2]
[347039036,1735480242800,-500.0,0.00010065,2]
[347039039,1735480242810,-500.0,0.00010066,2]
[347039040,1735480242819,-549.49,0.00010066,2]
[347039043,1735480242829,-500.0,0.00010066,2]
[347039045,1735480242839,-708.73,0.00010066,2]
[347039047,1735480242848,-900.28,0.00010066,2]
[347039049,1735480242857,-500.0,0.00010066,2]
[347039059,1735480242948,-500.0,0.00010067,2]
[347039061,1735480242958,-4210.04,0.00010067,2]
[347039063,1735480242968,-4148.23,0.00010068,2]
[347039065,1735480242977,-708.73,0.00010068,2]
[347039067,1735480242986,-352.4553754,0.00010082,2]
[347039069,1735480242995,-500.0,0.00010337,2]
[347039071,1735480243004,-1298.71,0.00010337,2]
[347039073,1735480243014,-745.72,0.00010337,2]
[347039075,1735480243026,-500.0,0.00010338,2]
[347039077,1735480243035,-500.0,0.00010338,2]
[347039079,1735480243044,-500.0,0.00010338,2]
[347039081,1735480243053,-500.0,0.00010338,2]
[347039083,1735480243062,-500.0,0.00010338,2]
[347039085,1735480243072,-500.0,0.00010338,2]
[347039087,1735480243081,-637.39,0.00010338,2]
[347039089,1735480243091,-500.0,0.00010338,2]
[347039091,1735480243100,-500.0,0.00010338,2]
[347039093,1735480243109,-500.0,0.00010338,2]
[347039096,1735480243118,-500.0,0.00010338,2]
[347039098,1735480243127,-552.32,0.00010338,2]
[347039100,1735480243136,-500.0,0.00010338,2]
[347039102,1735480243145,-810.0,0.00010338,2]
[347039104,1735480243155,-794.6,0.00010338,2]
[347039106,1735480243164,-648.27,0.00010338,2]
[347039108,1735480243173,-500.0,0.00010338,2]
[347039110,1735480243182,-500.0,0.00010338,2]
[347039112,1735480243192,-1824.68,0.00010338,2]
[347039114,1735480243201,-500.0,0.00010338,2]
[347039116,1735480243210,-599.93,0.00010338,2]
[347039118,1735480243220,-711.28,0.00010338,2]
[347039120,1735480243229,-500.0,0.00010338,2]
[347039122,1735480243239,-527.61,0.00010338,2]
[347039124,1735480243248,-500.0,0.00010338,2]
[347039126,1735480243257,-762.65,0.00010338,2]
[347039129,1735480243266,-500.0,0.00010338,2]
[347039132,1735480243275,-670.97,0.00010338,2]
[347039135,1735480243284,-500.0,0.00010338,2]
[347039137,1735480243293,-500.0,0.00010339,2]
[347039139,1735480243303,-278.52525293,0.00010339,2]
[347039141,1735480243311,-500.0,0.00010339,2]
[347039143,1735480243321,-500.0,0.00010339,2]
[347039146,1735480243329,-500.0,0.00010339,2]
[347039149,1735480243339,-500.0,0.00010339,2]
[347039151,1735480243348,-500.0,0.00010339,2]
[347039153,1735480243357,-500.0,0.00010339,2]
[347039155,1735480243367,-500.0,0.00010339,2]
[347039157,1735480243376,-2202.13,0.00010339,2]
[347039159,1735480243386,-876.35,0.00010339,2]
[347039161,1735480243395,-2703.62618514,0.00010339,2]
[347039195,1735480243705,-14599.26381486,0.00010339,2]
[347039197,1735480243715,-708.73,0.00010339,2]
[347039199,1735480243724,-627.81,0.00010339,2]
[347039201,1735480243733,-500.0,0.00010339,2]
[347039203,1735480243742,-500.0,0.00010339,2]
[347039205,1735480243751,-500.0,0.0001034,2]
[347039207,1735480243761,-549.49,0.0001034,2]
[347039209,1735480243770,-500.0,0.0001034,2]
[347039211,1735480243780,-900.28,0.0001034,2]
[347039213,1735480243790,-500.0,0.0001034,2]
[347039215,1735480243799,-500.0,0.00010341,2]
[347039217,1735480243809,-708.73,0.00010341,2]
[347039219,1735480243818,-4210.04,0.00010341,2]
[347039221,1735480243827,-4148.23,0.00010342,2]
[347039223,1735480243837,-352.4553754,0.00010356,2]
[347039225,1735480243847,-250.0,0.00010411,2]
[347039227,1735480243856,-500.0,0.00010611,2]
[347039229,1735480243866,-1298.71,0.00010611,2]
[347039231,1735480243875,-745.72,0.00010611,2]
[347039233,1735480243884,-500.0,0.00010612,2]
[347039235,1735480243894,-500.0,0.00010612,2]
[347039237,1735480243903,-500.0,0.00010612,2]
[347039239,1735480243912,-500.0,0.00010612,2]
[347039241,1735480243921,-500.0,0.00010612,2]
[347039243,1735480243930,-500.0,0.00010612,2]
[347039245,1735480243939,-637.39,0.00010612,2]
[347039247,1735480243949,-500.0,0.00010612,2]
[347039249,1735480243958,-500.0,0.00010612,2]
[347039251,1735480243967,-500.0,0.00010612,2]
[347039253,1735480243976,-500.0,0.00010612,2]
[347039255,1735480243986,-552.32,0.00010612,2]
[347039256,1735480243996,-500.0,0.00010612,2]
[347039258,1735480244006,-810.0,0.00010612,2]
[347039261,1735480244017,-794.6,0.00010612,2]
[347039263,1735480244031,-648.27,0.00010612,2]
[347039265,1735480244040,-500.0,0.00010612,2]
[347039267,1735480244049,-1824.68,0.00010612,2]
[347039269,1735480244059,-500.0,0.00010612,2]
[347039271,1735480244070,-262.38801919,0.00010612,2]
[347039273,1735480244079,-599.93,0.00010612,2]
[347039275,1735480244088,-711.28,0.00010612,2]
[347039276,1735480244097,-500.0,0.00010612,2]
[347039279,1735480244107,-527.61,0.00010612,2]
[347039281,1735480244116,-500.0,0.00010612,2]
[347039282,1735480244126,-762.65,0.00010612,2]
[347039284,1735480244135,-500.0,0.00010612,2]
[347039286,1735480244144,-670.97,0.00010612,2]
[347039287,1735480244154,-500.0,0.00010612,2]
[347039288,1735480244163,-500.0,0.00010613,2]
[347039289,1735480244172,-500.0,0.00010613,2]
[347039290,1735480244181,-500.0,0.00010613,2]
[347039291,1735480244191,-500.0,0.00010613,2]
[347039292,1735480244201,-500.0,0.00010613,2]
[347039293,1735480244210,-500.0,0.00010613,2]
[347039294,1735480244219,-500.0,0.00010613,2]
[347039295,1735480244229,-500.0,0.00010613,2]
[347039296,1735480244238,-2202.13,0.00010613,2]
[347039297,1735480244248,-876.35,0.00010613,2]
[347039298,1735480244257,-17302.89,0.00010613,2]
[347039300,1735480244266,-627.81,0.00010613,2]
[347039302,1735480244275,-708.73,0.00010613,2]
[347039304,1735480244284,-500.0,0.00010613,2]
[347039306,1735480244294,-155.70226963,0.00010613,2]
[347039308,1735480244303,-500.0,0.00010614,2]
[347039311,1735480244314,-549.49,0.00010614,2]
[347039313,1735480244324,-500.0,0.00010614,2]